{"text_format":"2","workbook":"xlsx","n_sheets":1,"sheets":["Order Form"],"not_rendered":{"charts":0,"images":1,"macros":0,"external_links":0,"defined_names":2,"comments":0,"pivot_tables":0},"unopened":[],"bounds":{"document_bytes":16777216,"sheet_cells":100000,"run_cost":"one","rows_first":2000,"rows_last":500,"rows_between":2000,"halvings":0,"cell_chars":16384,"cell_head_chars":4096},"cells_cut":0,"cells_raw":0,"read":"whole","date_system":"1900"}

{"sheet":"Order Form","index":0,"n_rows":347,"n_cols":11,"rows_kept":347,"cut":false,"hidden":false,"merged":[[0,0,0,1],[1,0,1,1],[2,0,2,1]]}
["Order Form"]
[{"$nulls":10},"Rudolf-Diesel-Str. 8a  Heidelberg"]
["All prices are excl. VAT / Incoterms FCA Halle",{"$nulls":9},"69115 Heidelberg "]
["Pickup Address:",{"$nulls":9}," Phone No. +49 6221 520 440"]
["Finsterwalder Transport und Logistik",{"$nulls":9},"Fax No. +49 6221 520 449"]
["Terminal A / Grenzstrasse 11",{"$nulls":9},"VAT Reg. No. DE 231468544"]
["06112 Halle/Saale (GER)",{"$nulls":9},"Bank Heidelberger Volksbank eG"]
[]
[]
["Item No.","Description","Category","Qty per box ","MOQ / Special price qty",null,null,"Order quantity in pieces","Order qty adapted to MOQ",null,"Related hardener   /      Article information"]
["11012","Aerosol 2K Clear coat premium 200 ml","Aerosol",6,{"$nulls":4},{"$f":"IF(OR(H11=0,H11=\"\"),\"\",ROUNDUP(IF(H11<E11,E11,H11)/D11,0)*D11)","v":""}]
["11013","Aerosol 2K Clear coat premium 500ml extended drying","Aerosol",6,{"$nulls":4},""]
["11014","Aerosol 2K Headlight Clear Coat 200 ml","Aerosol",6,{"$nulls":4},""]
["11225","2K Clear coat matt 1 L / 2:1","Clear Coat",6,{"$nulls":4},"",null,"12214,12224,12354,12504"]
["11335","MS 2K Clear coat scratch proof 1 L / 2:1 ","Clear Coat",6,{"$nulls":4},"",null,"12214,12224,12354,12504"]
["11338","MS 2K Clear coat scratch proof 5 L / 2:1 ","Clear Coat",4,{"$nulls":4},"",null,"12217,12227,12357,12507"]
["11554","HS 2K Clear coat scratch proof 500ml / 2:1","Clear Coat",6,{"$nulls":4},"",null,"12503"]
["11555","HS 2K Clear coat scratch proof 1 L / 2:1 ","Clear Coat",6,{"$nulls":4},"",null,"12214,12224,12354,12504"]
["11558","HS 2K Clear coat scratch proof 5 L / 2:1 ","Clear Coat",4,{"$nulls":4},"",null,"12217,12227,12357,12507"]
["11665","UHS 2K Clear coat LOW VOC Mirror gloss 1 L / 2:1 ","Clear Coat",6,{"$nulls":4},"",null,"12264,12274"]
["11668","UHS 2K Clear coat LOW VOC Mirror gloss 5 L / 2:1 ","Clear Coat",4,{"$nulls":4},"",null,"12267,12277,12287"]
["11775","UHS 2K Clear coat scratch proof 1 L / 2:1","Clear Coat",6,{"$nulls":4},"",null,"12774,12784"]
["11778","UHS 2K Clear coat scratch proof 5 L / 2:1","Clear Coat",4,{"$nulls":4},"",null,"12777,12787"]
["11785","UHS 2K Clear coat scratch proof slow 1 L / 2:1","Clear Coat",6,480,null,null,null,""]
["11788","UHS 2K Clear coat scratch proof slow 5 L / 2:1","Clear Coat",4,{"$nulls":4},"",null,"12777"]
["11805","HS 2K Fast & Perfect express clear coat 1L","Clear Coat",6,{"$nulls":4},"",null,"12804"]
["11808","HS 2K Fast & Perfect express clear coat 5L","Clear Coat",4,{"$nulls":4},"",null,"12807"]
["11898","UHS 2K Air dry express clear coat 5L","Clear Coat",4,{"$nulls":4},"",null,"12897"]
["12044","Hardener for Wash primer 0,5 L","Hardener",6,{"$nulls":4},""]
["12214","UNI Hardener slow 0,5 L","Hardener",6,480,null,null,null,""]
["12217","UNI Hardener slow 2,5 L","Hardener",4,{"$nulls":4},""]
["12224","HS Hardener standard 0,5 L","Hardener",6,{"$nulls":4},""]
["12227","HS Hardener standard 2,5 L","Hardener",4,{"$nulls":4},""]
["12264","Hardener for LOW VOC clear coat 0,5 L","Hardener",6,{"$nulls":4},""]
["12267","Hardener for LOW VOC clear coat 2,5 L","Hardener",4,{"$nulls":4},""]
["12274","Hardener fast for LOW VOC clear coat  0,5 L","Hardener",6,960,null,null,null,""]
["12277","Hardener fast for LOW VOC clear coat 2,5 L","Hardener",4,240,null,null,null,""]
["12287","Hardener slow for LOW VOC clear coat 2,5 L","Hardener",4,240,null,null,null,""]
["12354","UNI Hardener fast 0,5 L","Hardener",6,{"$nulls":4},""]
["12357","UNI Hardener fast 2,5 L","Hardener",4,{"$nulls":4},""]
["12415","Hardener for 2K Truck Bed Liner 250 ml","Hardener",12,{"$nulls":4},""]
["12503","UNI Hardener standard 250 ml","Hardener",12,{"$nulls":4},""]
["12504","UNI Hardener standard 0,5 L","Hardener",6,{"$nulls":4},""]
["12507","UNI Hardener standard 2,5 L","Hardener",4,{"$nulls":4},""]
["12554","Hardener for 455 Epoxy primer 0,5 L","Hardener",6,{"$nulls":4},""]
["12663","Hardener for 466 All in one primer 250 ml","Hardener",12,{"$nulls":4},""]
["12774","UHS Hardener 0,5L","Hardener",6,{"$nulls":4},""]
["12777","UHS Hardener 2,5L","Hardener",4,{"$nulls":4},""]
["12784","UHS Hardener fast 0,5L","Hardener",6,{"$nulls":4},""]
["12787","UHS Hardener fast 2,5L","Hardener",4,{"$nulls":4},""]
["12804","HS Hardener for 180 Clear coat 0,5 L","Hardener",6,{"$nulls":4},""]
["12807","HS Hardener for 180 Clear coat 2,5 L","Hardener",4,{"$nulls":4},""]
["12881","Hardener for 488/444 primer 100 ml","Hardener",6,{"$nulls":4},""]
["12883","Hardener for 488/444 primer 0,5L","Hardener",6,240,null,null,null,""]
["12884","Hardener for 488/444 primer 0,2 L","Hardener",12,{"$nulls":4},""]
["12885","Hardener for 488/444 primer 1 L","Hardener",6,{"$nulls":4},""]
["12886","Hardener for 488/444 primer 0,9L","Hardener",6,{"$nulls":4},""]
["12897","UHS Hardener for 189 Clear coat 2,5 L","Hardener",4,{"$nulls":4},""]
["12993","Hardener for 499 Express primer 250ml","Hardener",12,{"$nulls":4},""]
["12994","Hardener for 499 Express primer 900ml","Hardener",6,{"$nulls":4},"",null,"New"]
["13225","Uni Thinner 1 L","Liquids",6,{"$nulls":4},""]
["13228","Uni Thinner 5 L","Liquids",4,{"$nulls":4},""]
["13235","UNI Thinner slow 1 L","Liquids",6,{"$nulls":4},""]
["13238","UNI Thinner slow 5 L","Liquids",4,{"$nulls":4},""]
["13405","Spot blender 1 L","Liquids",6,{"$nulls":4},""]
["13507","Silicone remover and degreaser 1L","Liquids",6,{"$nulls":4},""]
["13508","Silicone remover and degreaser 5 L","Liquids",4,{"$nulls":4},""]
["13601","Elastifier 250 ml","Liquids",12,{"$nulls":4},""]
["13602","2K to 1K Converter  1L","Liquids",6,{"$nulls":4},""]
["13611","Anti Silicone Additive 250 ml","Liquids",12,{"$nulls":4},""]
["14012","Aerosol 2K primer premium 200 ml","Aerosol",6,456,null,null,null,""]
["14013","Aerosol 2K Epoxy Primer 200 ml","Aerosol",6,{"$nulls":4},""]
["14033","Paint for plastic and bumper BLACK 1L","Protection Coating",6,{"$nulls":4},"",null,"New"]
["14035","Structure paint for plastic and bumper BLACK 1L","Protection Coating",6,{"$nulls":4},""]
["14036","Structure paint for plastic and bumper GREY 1L","Protection Coating",6,{"$nulls":4},{"$f":"IF(OR(H75=0,H75=\"\"),\"\",ROUNDUP(IF(H75<E75,E75,H75)/D75,0)*D75)","v":""}]
["14037","Structure paint for plastic and bumper BLACK 500 ml","Protection Coating",3,{"$nulls":4},""]
["14045","2K Wash primer 2:1 1 L / 2:1 ","Primer",6,{"$nulls":4},"",null,"12044"]
["14094","1K Plastic Primer 0,5 L","Primer",6,{"$nulls":4},""]
["14095","1K Plastic Primer 1 L","Primer",6,{"$nulls":4},""]
["14115","1K Isolator Primer 1 L","Primer",6,{"$nulls":4},""]
["14175","Spray Putty 1 L","Putty/Body Filler",6,{"$nulls":4},""]
["14225","1K Primer fast GREY 1L","Primer",6,{"$nulls":4},""]
["14441","2K Acrylic primer 4:1 GREY 800 ml","Primer",6,{"$nulls":4},"",null,"12884"]
["14442","2K Acrylic primer 4:1 BLACK 800 ml","Primer",6,{"$nulls":4},"",null,"12884"]
["14443","2K Acrylic primer 4:1 WHITE 800 ml","Primer",6,{"$nulls":4},"",null,"12884"]
["14444","2K Acrylic primer 4:1 GREY 3,6L","Primer",2,{"$nulls":4},"",null,"12886"]
["14445","2K Acrylic primer 4:1 BLACK 3,6L","Primer",2,{"$nulls":4},"",null,"12886"]
["14446","2K Acrylic primer 4:1 WHITE 3,6L","Primer",2,{"$nulls":4},"",null,"12886"]
["14554","2K Epoxy primer 2:1 1 L","Primer",6,{"$nulls":4},"",null,"12554"]
["14664","2K All in one primer 4:1 1 L","Primer",6,{"$nulls":4},"",null,"12663"]
["14671","2K Wet on wet primer 5:1 1 L","Primer",6,{"$nulls":4},"",null,"12884"]
["14881","2K Acrylic filling primer GREY HS 5:1 1L","Primer",6,{"$nulls":4},"",null,"12884"]
["14882","2K Acrylic filling primer BLACK HS 5:1 1L","Primer",6,{"$nulls":4},"",null,"12884"]
["14883","2K Acrylic filling primer RED HS 5:1 1L","Primer",6,{"$nulls":4},"",null,"12884"]
["14884","2K Acrylic filling primer WHITE HS 5:1 1L","Primer",6,{"$nulls":4},"",null,"12884"]
["14885","2K Acrylic filling primer GREY HS 5:1 500 ml","Primer",6,600,null,null,null,""]
["14886","2K Acrylic filling primer BLACK HS 5:1 500 ml","Primer",6,{"$nulls":4},""]
["14887","2K Acrylic filling primer WHITE HS 5:1 5L","Primer",2,{"$nulls":4},"",null,"12885"]
["14888","2K Acrylic filling primer BLACK HS 5:1 5L","Primer",2,{"$nulls":4},"",null,"12885"]
["148880","2K Acrylic filling primer BLACK HS 5:1 2,5L","Primer",4,240,null,null,null,""]
["14889","2K Acrylic filling primer GREY HS 5:1 5L","Primer",2,{"$nulls":4},"",null,"12885"]
["148890","2K Acrylic filling primer GREY HS 5:1 2,5L","Primer",4,240,null,null,null,""]
["14991","2K Express primer GREY 4:1 1L","Primer",6,{"$nulls":4},"",null,"12993"]
["14992","2K Express primer BLACK 4:1 1L","Primer",6,{"$nulls":4},"",null,"12993"]
["14993","2K Express primer WHITE 4:1 1L","Primer",6,{"$nulls":4},"",null,"12993"]
["14994","2K Express primer GREY 4:1 3,6L","Primer",2,{"$nulls":4},"",null,"New,12994"]
["14995","2K Express primer WHITE 4:1 3,6L","Primer",2,{"$nulls":4},"",null,"New"]
["14996","2K Express primer BLACK 4:1 3,6L","Primer",2,{"$nulls":4},"",null,"New"]
["15002","Cap for 250gr putty 252 pcs","Putty/Body Filler",252,{"$nulls":4},""]
["15004","Cap for 500gr putty 114 pcs","Putty/Body Filler",114,{"$nulls":4},""]
["15005","Cap for 1 kg putty 360 pcs","Putty/Body Filler",360,{"$nulls":4},""]
["150050","Putty hardener standard 50 gr","Putty/Body Filler",50,{"$nulls":4},""]
["150051","Putty hardener standard 25 gr","Putty/Body Filler",50,{"$nulls":4},""]
["15012","Universal filling putty 250 gr","Putty/Body Filler",12,{"$nulls":4},""]
["15014","Universal filling putty 515 gr","Putty/Body Filler",12,{"$nulls":4},""]
["15015","Universal filling putty  1 kg","Putty/Body Filler",12,{"$nulls":4},""]
["15016","Universal filling putty 1,85 kg","Putty/Body Filler",6,{"$nulls":4},""]
["15019","Universal filling putty 4,1 kg","Putty/Body Filler",4,{"$nulls":4},""]
["15022","Fine finishing putty 250 gr","Putty/Body Filler",12,{"$nulls":4},""]
["15024","Fine finishing putty 515 gr","Putty/Body Filler",12,{"$nulls":4},""]
["15025","Fine finishing putty 1 kg","Putty/Body Filler",12,{"$nulls":4},""]
["15026","Fine finishing putty 1,85 kg","Putty/Body Filler",6,{"$nulls":4},""]
["15032","Fiberglass putty 250gr","Putty/Body Filler",12,{"$nulls":4},""]
["15034","Fiberglass putty 512 gr","Putty/Body Filler",12,{"$nulls":4},""]
["15035","Fiberglass putty 1 kg","Putty/Body Filler",12,{"$nulls":4},""]
["15036","Fiberglass putty 1,85 kg","Putty/Body Filler",6,{"$nulls":4},""]
["15039","Fiberglass putty 4 kg","Putty/Body Filler",2,{"$nulls":4},""]
["15042","Aluminium putty 250 gr","Putty/Body Filler",12,{"$nulls":4},""]
["15044","Aluminium putty 512 gr","Putty/Body Filler",12,{"$nulls":4},""]
["15045","Aluminium putty 1 kg","Putty/Body Filler",12,{"$nulls":4},""]
["15046","Aluminium putty 1,85 kg","Putty/Body Filler",6,{"$nulls":4},""]
["15049","Aluminium putty 4 kg","Putty/Body Filler",4,{"$nulls":4},""]
["15052","Universal soft putty 250 gr","Putty/Body Filler",12,{"$nulls":4},""]
["15054","Universal soft putty 515 gr","Putty/Body Filler",12,{"$nulls":4},""]
["15055","Universal soft putty 1 kg","Putty/Body Filler",12,{"$nulls":4},""]
["15056","Universal soft putty 1,85 kg","Putty/Body Filler",6,{"$nulls":4},""]
["15059","Universal soft putty 4 kg","Putty/Body Filler",4,{"$nulls":4},""]
["15072","Elastic putty for plastic 250 gr","Putty/Body Filler",12,{"$nulls":4},""]
["15074","Elastic putty for plastic 515 gr","Putty/Body Filler",12,{"$nulls":4},{"$f":"IF(OR(H139=0,H139=\"\"),\"\",ROUNDUP(IF(H139<E139,E139,H139)/D139,0)*D139)","v":""}]
["15075","Elastic putty for plastic 1 kg","Putty/Body Filler",12,{"$nulls":4},""]
["15076","Elastic putty for plastic 1,85 kg","Putty/Body Filler",6,{"$nulls":4},"",null,"New"]
["15080","Repair set 250 gr","Putty/Body Filler",12,{"$nulls":4},""]
["15095","Polyester resin 1 kg","Putty/Body Filler",12,{"$nulls":4},""]
["15100","NC Putty 250 g","Putty/Body Filler",12,{"$nulls":4},""]
["15146","High Temp Metal putty 1,4 kg","Putty/Body Filler",6,{"$nulls":4},""]
["15334","Fiberglass light putty 500 ml","Putty/Body Filler",12,{"$nulls":4},""]
["15335","Fiberglass light putty 1000 ml","Putty/Body Filler",6,{"$nulls":4},""]
["15345","Carbon Fiber Putty 1 kg","Putty/Body Filler",12,{"$nulls":4},""]
["15525","Fast Finish Body Filler 1000 ml","Putty/Body Filler",6,{"$nulls":4},""]
["15527","Fast Finish Body Filler 3000ml","Putty/Body Filler",4,{"$nulls":4},""]
["15554","Soft light putty 500 ml","Putty/Body Filler",12,{"$nulls":4},""]
["15555","Soft light putty 1000 ml","Putty/Body Filler",6,{"$nulls":4},""]
["15755","Soft & Perfect Body Filler 1 L","Putty/Body Filler",6,{"$nulls":4},""]
["15757","Soft & Perfect Body Filler 3 L","Putty/Body Filler",4,{"$nulls":4},""]
["25000","Pneumatic Filling Machine ",null,1,{"$nulls":4},""]
["25001","Aerosol Pre-fill standard 275 ml","Aerosol",6,{"$nulls":4},""]
["25004","Aerosol Pre-fill 2K to 1K Converter 300 ml","Aerosol",6,{"$nulls":4},""]
["25005","Aerosol Pre-fill Premium 300 ml","Aerosol",6,{"$nulls":4},""]
["25011","Manual Filling Machine ",null,1,{"$nulls":4},""]
["26002","Aerosol Primer BLACK 500 ml","Aerosol",6,{"$nulls":4},""]
["26003","Aerosol Primer WHITE 500 ml","Aerosol",6,{"$nulls":4},""]
["26004","Aerosol Primer GREY 500 ml","Aerosol",6,{"$nulls":4},""]
["26005","Aerosol Primer RED 500 ml","Aerosol",6,{"$nulls":4},""]
["26014","Aerosol Plastic primer 400 ml","Aerosol",6,{"$nulls":4},""]
["26015","Aerosol Plastic filling primer 400 ml","Aerosol",6,{"$nulls":4},""]
["26022","Aerosol Wash primer RED 400 ml","Aerosol",6,{"$nulls":4},""]
["26023","Aerosol Wash primer OLIVE GREEN 400 ml","Aerosol",6,{"$nulls":4},""]
["26032","Aerosol Epoxy primer 400 ml","Aerosol",6,{"$nulls":4},""]
["26033","Aerosol UV Primer 400 ml","Aerosol",6,{"$nulls":4},"",null,"New"]
["26040","Aerosol Thick layer filler GREY 400 ml","Aerosol",6,{"$nulls":4},""]
["26041","Aerosol Thick layer filler BLACK 400 ml","Aerosol",6,{"$nulls":4},""]
["26042","Aerosol Thick layer filler WHITE 400 ml","Aerosol",6,{"$nulls":4},""]
["26043","Aerosol Express Fill-Primer 500 ml","Aerosol",6,{"$nulls":4},""]
["26051","Aerosol Control guide coat BLACK 500ml","Aerosol",6,{"$nulls":4},""]
["26060","Aerosol Rust converter primer 400 ml","Aerosol",6,{"$nulls":4},""]
["26070","Aerosol Silicone remover 500ml","Aerosol",6,{"$nulls":4},""]
["26104","Aerosol Wheel paint SILVER 500 ml","Aerosol",6,{"$nulls":4},""]
["26142","Aerosol Primer Pro 500ml","Aerosol",6,{"$nulls":4},"",null,"New"]
["26204","Aerosol Spray paint BLACK matt 500 ml","Aerosol",6,{"$nulls":4},""]
["26205","Aerosol Spray paint BLACK semimatt 500 ml","Aerosol",6,{"$nulls":4},""]
["26206","Aerosol Spray paint WHITE matt 500 ml","Aerosol",6,{"$nulls":4},""]
["26214","Aerosol Spray paint BLACK gloss 500 ml","Aerosol",6,{"$nulls":4},""]
["26314","Aerosol Paint for plastic & bumper GREY 400ml","Aerosol",6,{"$nulls":4},""]
["26334","Aerosol Paint for plastic & bumper BLACK 400ml","Aerosol",6,{"$nulls":4},""]
["26340","Aerosol Structure paint BLACK 500ml","Aerosol",6,{"$nulls":4},""]
["26344","Aerosol Fine Structure paint BLACK 400ml","Aerosol",6,{"$nulls":4},"",null,"New"]
["26350","Aerosol Transparent paint for glass & plastic RED 400ml","Aerosol",6,{"$nulls":4},""]
["26351","Aerosol Transparent paint for glass & plastic BLACK 400ml","Aerosol",6,{"$nulls":4},""]
["26404","Aerosol Clear coat 500 ml","Aerosol",6,{"$nulls":4},""]
["26406","Aerosol Clear coat matt 500 ml","Aerosol",6,{"$nulls":4},""]
["26414","Aerosol Spray paint WHITE gloss 500 ml","Aerosol",6,{"$nulls":4},""]
["26504","Aerosol Spot blender 400 ml","Aerosol",6,{"$nulls":4},""]
["26601","Aerosol Heat resistant paint 650 °C BLACK 400 ml","Aerosol",6,{"$nulls":4},""]
["26602","Aerosol Heat resistant paint 650 °C SILVER 400 ml","Aerosol",6,{"$nulls":4},""]
["26603","Aerosol Engine paint BLACK MATT 400 ml","Aerosol",6,{"$nulls":4},""]
["26606","Aerosol Engine paint SILVER 400 ml","Aerosol",6,{"$nulls":4},""]
["26611","Aerosol Brake caliper paint RED 400 ml","Aerosol",6,{"$nulls":4},""]
["26612","Aerosol Brake caliper paint YELLOW 400 ml","Aerosol",6,{"$nulls":4},""]
["26701","Aerosol Spray putty  400 ml","Aerosol",6,{"$nulls":4},""]
["26711","Aerosol Zinс spray 400 ml","Aerosol",6,{"$nulls":4},""]
["26722","Aerosol Zink-Alu spray 400 ml","Aerosol",6,{"$nulls":4},""]
["26723","Aerosol Isolator Primer 400 ml","Aerosol",6,{"$nulls":4},""]
["26724","Aerosol Aluminum primer 400 ml","Aerosol",6,{"$nulls":4},{"$f":"IF(OR(H203=0,H203=\"\"),\"\",ROUNDUP(IF(H203<E203,E203,H203)/D203,0)*D203)","v":""}]
["26725","Aerosol Chrome Effect 400 ml","Aerosol",6,{"$nulls":4},""]
["26726","Aerosol Gold Effect 400ML","Aerosol",6,{"$nulls":4},"",null,"New"]
["26730","Aerosol Paint remover 400 ml","Aerosol",6,{"$nulls":4},""]
["26740","Aerosol Hollow section wax 500ml","Aerosol",6,{"$nulls":4},""]
["26801","Aerosol Leather paint BLACK 400 ml","Aerosol",6,{"$nulls":4},""]
["26802","Aerosol Paint for carpets & fabrics BLACK 400 ml","Aerosol",6,{"$nulls":4},""]
["26803","Aerosol Contact adhesive  500 ml","Aerosol",6,{"$nulls":4},""]
["26804","Aerosol Sticker remover 400 ml","Aerosol",6,{"$nulls":4},"",null,"New"]
["26808","Aerosol Leather paint BEIGE 400ml","Aerosol",6,{"$nulls":4},"",null,"New"]
["26809","Aerosol Leather paint GREY 400ml","Aerosol",6,{"$nulls":4},"",null,"New"]
["26812","Aerosol Paint for carpets & fabrics ANTHRACITE 400ml","Aerosol",6,{"$nulls":4},"",null,"New"]
["27009","Multi-purpose spray 500ml","Aerosol",6,{"$nulls":4},""]
["37014","Aerosol Underbody protection WHITE 500 ml","Aerosol",6,{"$nulls":4},""]
["37024","Aerosol Underbody protection GREY 500 ml","Aerosol",6,{"$nulls":4},""]
["37034","Aerosol Underbody protection BLACK 500 ml","Aerosol",6,{"$nulls":4},""]
["37100","Aerosol Underbody Protection bitumen 500 ml","Aerosol",6,{"$nulls":4},""]
["37111","Bitumen brushable 1 kg","Protection Coating",6,{"$nulls":4},""]
["37245","Water Based UB protection BLACK 1 kg","Protection Coating",12,{"$nulls":4},""]
["37251","Underbody protection BLACK 1,8 kg","Protection Coating",6,{"$nulls":4},""]
["37255","Underbody protection BLACK 1 kg","Protection Coating",12,{"$nulls":4},""]
["37256","Underbody protection GREY 1 kg","Protection Coating",12,{"$nulls":4},""]
["37257","Underbody protection WHITE 1 kg","Protection Coating",12,{"$nulls":4},""]
["37415","Guard 2K truck bed Liner BLACK 750 ml","Protection Coating",12,{"$nulls":4},"",null,"12415"]
["37416","Guard 2K truck bed Liner TINTABLE 750 ml","Protection Coating",12,{"$nulls":4},"",null,"12415"]
["37511","Polyurethane car body sealant BLACK 310 ml","Sealant",12,{"$nulls":4},""]
["37521","Polyurethane car body sealant GREY 310 ml","Sealant",12,{"$nulls":4},""]
["37531","Polyurethane car body sealant WHITE 310 ml","Sealant",12,{"$nulls":4},""]
["37650","Brushable PU sealant 1 Kg","Sealant",6,{"$nulls":4},""]
["37731","Polyurethane adhesive for windscreens 310 ml","Sealant",12,{"$nulls":4},""]
["37815","Hollow section wax in cartridge 1 L","Protection Coating",12,{"$nulls":4},""]
["38015","Aerosol UB protection premium WHITE 500 ml","Aerosol",6,{"$nulls":4},""]
["38025","Aerosol UB protection premium GREY 500 ml","Aerosol",6,{"$nulls":4},""]
["38035","Aerosol UB protection premium BLACK 500 ml","Aerosol",6,{"$nulls":4},""]
["38721","Primer for 773 adhesive for windscreens 30ml","Sealant",12,{"$nulls":4},""]
["39010","Rust Stop & Sealer 100ml","Protection Coating",6,{"$nulls":4},""]
["450884","Fan spray nozzle set black-yellow 300 pcs (57021)","Aerosol",1,{"$nulls":4},""]
["48010","Absorbing wipes 0,42*0,75m","Consumables",240,{"$nulls":4},""]
["48011","Waffle tack rag 0,20*0,55m - 0,90*0,95m","Consumables",100,{"$nulls":4},""]
["48030","Blautex 0,32*0,40m","Consumables",500,{"$nulls":4},""]
["48040","Blautex roll 500 sheets","Consumables",1,{"$nulls":4},""]
["48051","Sanding pads fine 50 pcs","Consumables",50,{"$nulls":4},""]
["48052","Sanding pads superfine 50 pcs","Consumables",50,{"$nulls":4},""]
["48053","Sanding pads microfine 50 pcs","Consumables",50,{"$nulls":4},""]
["48112","Masking tape 60° 18mm*50m","Consumables",48,{"$nulls":4},""]
["48122","Masking tape 60° 24mm*50m","Consumables",36,{"$nulls":4},""]
["48142","Masking tape 60° 36mm*50m ","Consumables",24,{"$nulls":4},""]
["48152","Masking tape 60° 48mm*50m ","Consumables",24,{"$nulls":4},""]
["48212","Masking tape 90° 18mm*50m ","Consumables",48,{"$nulls":4},""]
["48222","Masking tape 90° 24mm*50m ","Consumables",36,{"$nulls":4},""]
["48242","Masking tape 90° 36mm*50m ","Consumables",24,{"$nulls":4},""]
["48252","Masking tape 90° 48mm*50m ","Consumables",24,{"$nulls":4},""]
["48310","Double-sided tape 6mm*5m","Consumables",50,{"$nulls":4},""]
["48320","Double-sided tape 9mm*5m","Consumables",50,{"$nulls":4},""]
["48330","Double-sided tape 12mm*5m","Consumables",50,{"$nulls":4},""]
["48351","Soft edge foam masking tape 13mm*20m","Consumables",30,{"$nulls":4},""]
["48360","Fine line tape blue 3mm*33m","Consumables",20,{"$nulls":4},""]
["48361","Fine line tape blue 6mm*33m","Consumables",20,{"$nulls":4},""]
["48370","Tape and stripping remove disc ","Consumables",24,{"$nulls":4},""]
["48371","Axle for disc ","Consumables",24,{"$nulls":4},""]
["48400","Mesh filter 190 microns","Consumables",1000,{"$nulls":4},""]
["48410","Mesh filter 125 microns","Consumables",1000,{"$nulls":4},""]
["48603","Hand cleaner ultra strong 3 L","Consumables",6,{"$nulls":4},""]
["48610","Mixing cups  385ml","Consumables",200,{"$nulls":4},""]
["48611","Cap for mixing cups 385ml","Consumables",200,{"$nulls":4},{"$f":"IF(OR(H267=0,H267=\"\"),\"\",ROUNDUP(IF(H267<E267,E267,H267)/D267,0)*D267)","v":""}]
["48620","Mixing cups 750ml","Consumables",200,{"$nulls":4},""]
["48622","Cap for mixing cups 750ml","Consumables",200,{"$nulls":4},""]
["48630","Mixing cups 1400ml","Consumables",200,{"$nulls":4},""]
["48633","Cap for mixing cups 1400ml","Consumables",200,{"$nulls":4},""]
["48640","Mixing cups 2300ml","Consumables",100,{"$nulls":4},""]
["48644","Cap for mixing cups  2300ml","Consumables",100,{"$nulls":4},""]
["48700","Japan putty knife set INOX 50, 80, 100, 120mm","Consumables",200,{"$nulls":4},""]
["48777","Masking film 120 g / 7 µm","Consumables",40,{"$nulls":4},""]
["48787","Masking film XL 168 g / 7 µm","Consumables",30,{"$nulls":4},""]
["48790","Masking film roll 4m x150m","Consumables",1,{"$nulls":4},""]
["48791","Masking film roll 5m x 120m","Consumables",1,{"$nulls":4},""]
["48801","Nitrile gloves medium","Protection Wear",1000,{"$nulls":4},""]
["48802","Nitrile gloves large","Protection Wear",1000,{"$nulls":4},""]
["48803","Nitrile gloves extra large","Protection Wear",1000,{"$nulls":4},""]
["48901","Nitrile gloves super grip medium","Protection Wear",800,{"$nulls":4},""]
["48902","Nitrile gloves super grip large","Protection Wear",800,{"$nulls":4},""]
["48903","Nitrile gloves super grip extra large","Protection Wear",800,{"$nulls":4},""]
["48905","Nitrile gloves POWER GRIP large","Protection Wear",1000,{"$nulls":4},""]
["48906","Nitrile gloves POWER GRIP extra large","Protection Wear",1000,{"$nulls":4},""]
["49100","Polishing pad soft BLACK 150x50mm velcro","Consumables",50,{"$nulls":4},""]
["49110","Polishing pad hard ORANGE  150x50mm velcro","Consumables",50,{"$nulls":4},""]
["49120","Polishing pad very hard WHITE 150x50mm velcro","Consumables",50,{"$nulls":4},""]
["49200","Polishing pad soft BLACK 150x50mm backing plate","Consumables",50,{"$nulls":4},""]
["49210","Polishing pad hard ORANGE 150x50mm backing plate","Consumables",50,{"$nulls":4},""]
["49220","Polishing pad very hard WHITE 150x50mm backing plate","Consumables",50,{"$nulls":4},""]
["49300","Polishing pad soft BLACK 150x25mm velcro ","Consumables",50,{"$nulls":4},""]
["49301","Polishing pad soft BLACK 83x25mm velcro","Consumables",50,{"$nulls":4},""]
["49310","Polishing pad hard ORANGE 150x25mm velcro ","Consumables",50,{"$nulls":4},""]
["49311","Polishing pad hard ORANGE 83x25mm velcro","Consumables",50,{"$nulls":4},""]
["49320","Polishing pad very hard WHITE 150x25mm velcro ","Consumables",50,{"$nulls":4},""]
["49321","Polishing pad very hard WHITE 83x25mm velcro","Consumables",50,{"$nulls":4},""]
["49400","Waffle polishing pad soft BLACK 150x25mm velcro ","Consumables",50,{"$nulls":4},""]
["49410","Waffle polishing pad hard ORANGE 150x25mm velcro ","Consumables",50,{"$nulls":4},""]
["49711","Car Wash Shampoo Super Concentrate 1000 ml","Car Care",12,{"$nulls":4},""]
["49712","Air Con refresher Lavender 150ml","Car Care",12,{"$nulls":4},""]
["49713","Air Con refresher Lemon 150ml","Car Care",12,{"$nulls":4},""]
["49721","Super Strong Wheel Rim Cleaner 650 ml","Car Care",12,{"$nulls":4},""]
["49731","Foaming Glass Cleaner 650 ml","Car Care",12,{"$nulls":4},""]
["49732","Tire shine 650 ml","Car Care",12,{"$nulls":4},""]
["49733","Insect & Bug Remover 650 ml","Car Care",12,{"$nulls":4},""]
["49741","Plastic Cleaner 650 ml","Car Care",12,{"$nulls":4},""]
["49743","Aerosol Air Con Cleaner Professional 500ml","Car Care",12,{"$nulls":4},""]
["49751","Upholstery Cleaner 650 ml","Car Care",12,{"$nulls":4},""]
["49752","Aerosol Leather Cleaner and Conditioner 500ml","Car Care",6,{"$nulls":4},""]
["49753","Aerosol Cockpit Clean & Protect Vanilla 500 ml","Car Care",6,{"$nulls":4},""]
["49754","Aerosol Cockpit Clean & Protect  Lemon 500 ml","Car Care",6,{"$nulls":4},""]
["49762","Wet wax 650 ml","Car Care",12,{"$nulls":4},""]
["49821","Backing plate standard M 14","Consumables",50,{"$nulls":4},""]
["49901","Laser Perfect cut 1kg","Laser",6,{"$nulls":4},""]
["49903","Laser Perfect shine 0,5L","Laser",12,{"$nulls":4},""]
["49911","Laser Perfect cut 0,5kg","Laser",12,{"$nulls":4},""]
["49930","Laser Power cut 1kg","Laser",12,{"$nulls":4},""]
["49931","Laser Supreme Cut 0,5kg","Laser",10,{"$nulls":4},""]
["49932","Laser Supreme Cut 1kg","Laser",8,{"$nulls":4},""]
["49933","Laser Ultimate Finish 0,5kg","Laser",10,{"$nulls":4},""]
["49961","Premium Polishing Pad very hard WHITE 150x25mm velcro","Consumables",50,{"$nulls":4},""]
["49971","Premium Polishing Pad hard ORANGE 150x25mm velcro","Consumables",50,{"$nulls":4},""]
["49981","Premium Polishing Pad soft BLACK 150x25mm velcro","Consumables",50,{"$nulls":4},""]
["50010","1K Acrylic paint BLACK matt 1 L","Protection Coating",6,{"$nulls":4},""]
["50020","1K Acrylic paint SILVER RAL 9006 1 L","Protection Coating",6,{"$nulls":4},""]
["500223","Pump for Handcleaner 3L ","Consumables",4,{"$nulls":4},""]
["51001","Base coat black VW 041 1L","Ready Mix",6,{"$nulls":4},""]
["51003","Base coat white TOYOTA 040 1L","Ready Mix",6,{"$nulls":4},""]
["51098","Base coat silver DB 744 1L","Ready Mix",6,{"$nulls":4},{"$f":"IF(OR(H331=0,H331=\"\"),\"\",ROUNDUP(IF(H331<E331,E331,H331)/D331,0)*D331)","v":""}]
["51500","BC BINDER 3L","Ready Mix",4,{"$nulls":4},""]
["734502","Fan spray nozzle set red-black 300 pcs (37389)","Aerosol",1,{"$nulls":4},""]
["80011","Paint overall Size S","Protection Wear",10,{"$nulls":4},""]
["80012","Paint overall Size M","Protection Wear",10,{"$nulls":4},""]
["80013","Paint overall Size L","Protection Wear",10,{"$nulls":4},""]
["80014","Paint overall Size XL","Protection Wear",10,{"$nulls":4},""]
["80015","Paint overall Size XXL","Protection Wear",10,{"$nulls":4},""]
["80024","Premium anti static overall Size M","Protection Wear",5,{"$nulls":4},""]
["80025","Premium anti static overall Size L","Protection Wear",5,{"$nulls":4},""]
["80026","Premium anti static overall Size XL","Protection Wear",5,{"$nulls":4},""]
["85020","Work Pants  S","Protection Wear",1,{"$nulls":4},""]
["85021","Work Pants  M","Protection Wear",1,{"$nulls":4},""]
["85022","Work Pants  M tall","Protection Wear",1,{"$nulls":4},""]
["85023","Work Pants  L","Protection Wear",1,{"$nulls":4},""]
["85024","Work Pants  L tall","Protection Wear",1,{"$nulls":4},""]
["85025","Work Pants  XL","Protection Wear",1,{"$nulls":4},""]